[Event "FIDE Chesscom Grand Swiss 2019"]
[Site "Douglas-Isle of Man"]
[Date "2019.10.15"]
[Round "6.28"]
[White "Kuzubov, Yuriy"]
[Black "Cheparinov, Ivan"]
[Result "1/2-1/2"]
[ECO "D02"]
[WhiteElo "2636"]
[BlackElo "2670"]
[Annotator "RC"]
[PlyCount "191"]
[EventDate "2019.10.10"]
[EventType "swiss"]
[EventCountry "GBR"]
[SourceTitle "playchess.com"]
[Source "ChessBase"]
[SourceQuality "1"]
[TimeControl "40/6000+30:20/3000+30:900+30"]

1. d4 {[%emt 0:00:00]} Nf6 {[%emt 0:00:00]} 2. Nf3 {[%emt 0:00:00]} g6 {[%emt 0:00:00]} 3. Nbd2 {[%emt 0:00:00]} d5 {[%emt 0:00:49]} 4. e3 {[%emt 0:00:09]} Bg7 {[%emt 0:00:05]} 5. b4 {[%emt 0:00:06]} a5 {[%emt 0:00:50]} 6. b5 {[%emt 0:00:05]} c5 {[%emt 0:00:03]} 7. bxc6 {[%emt 0:00:18]} Nxc6 {[%emt 0:00:03]} 8. Be2 {[%emt 0:01:26]} O-O {[%emt 0:00:49]} 9. O-O {[%emt 0:00:04]} Bf5 {[%emt 0:00:27]} 10. c4 {[%emt 0:00:11]} Nb4 {[%emt 0:04:34]} 11. Qb3 {[%emt 0:00:20]} Bc2 {[%emt 0:14:31]} 12. Qb2 {[%emt 0:00:48]} dxc4 {[%emt 0:02:27]} 13. Nxc4 {[%emt 0:05:53]} Be4 {[%emt 0:08:46]} 14. Bd2 {[%emt 0:05:52]} Rc8 {[%emt 0:27:03]} 15. Nxa5 {[%emt 0:19:28]} Nfd5 {[%emt 0:00:27]} 16. Bxb4 {[%emt 0:14:07]} Rc2 {[%emt 0:02:00]} 17. Qb1 {[%emt 0:02:38]} Nxb4 {[%emt 0:00:41]} 18. Qxb4 {[%emt 0:03:17]} Rxe2 {[%emt 0:01:14]} 19. Nd2 {[%emt 0:01:03]} Bd5 {[%emt 0:06:45]} 20. Nab3 {[%emt 0:19:02]} Qd7 {[%emt 0:06:26]} 21. h3 {[%emt 0:01:31]} Bh6 {[%emt 0:11:36]} 22. Nc1 {[%emt 0:03:16]} Rxe3 {[%emt 0:02:19]} 23. fxe3 {[%emt 0:00:12]} Bxe3+ {[%emt 0:00:02]} 24. Kh2 {[%emt 0:00:41]} Rc8 {[%emt 0:01:53]} 25. Ncb3 {[%emt 0:04:27]} Rc2 {[%emt 0:03:59]} 26. Rad1 {[%emt 0:20:07]} h5 {[%emt 0:03:35]} 27. Rf3 {[%emt 0:04:47]} Qc7+ {[%emt 0:04:06]} 28. Kh1 {[%emt 0:00:03]} Bxf3 {[%emt 0:00:52]} 29. Nxf3 {[%emt 0:00:06]} Rf2 {[%emt 0:04:10]} 30. Nbd2 {[%emt 0:03:34]} Bxd2 {[%emt 0:01:28]} 31. Nxd2 {[%emt 0:00:30]} Qc2 {[%emt 0:00:03]} 32. Rg1 {[%emt 0:00:58]} Qxd2 {[%emt 0:03:14]} 33. Qxe7 {[%emt 0:00:06]} Qxd4 {[%emt 0:00:16]} 34. Qxb7 {[%emt 0:00:31]} Rxa2 {[%emt 0:00:20]} 35. Rf1 {[%emt 0:00:12]} Rf2 {[%emt 0:00:11]} 36. Rxf2 {[%emt 0:00:49]} Qxf2 {[%emt 0:00:04]} 37. Qb8+ {[%emt 0:00:07]} Kg7 {[%emt 0:00:12]} 38. Qe5+ {[%emt 0:00:06]} f6 {[%emt 0:02:03]} 39. Qc7+ {[%emt 0:00:50]} Kh6 {[%emt 0:00:05]} 40. Qc1+ {[%emt 0:00:06]} g5 {[%emt 0:00:04]} 41. Qc8 {[%emt 0:50:10]} Qe1+ {[%emt 0:06:15]} 42. Kh2 {[%emt 0:00:00]} Qe5+ {[%emt 0:00:20]} 43. Kh1 {[%emt 0:00:00]} Kg7 {[%emt 0:02:50]} 44. Qd7+ {[%emt 0:00:00]} Kg6 {[%emt 0:00:35]} 45. Qc8 {[%emt 0:00:00]} f5 {[%emt 0:04:10]} 46. Qg8+ {[%emt 0:00:00]} Qg7 {[%emt 0:00:03]} 47. Qe8+ {[%emt 0:00:00]} Qf7 {[%emt 0:00:02]} 48. Qd8 {[%emt 0:00:00]} Qf6 {[%emt 0:00:15]} 49. Qg8+ {[%emt 0:00:00]} Kh6 {[%emt 0:00:02]} 50. Qe8 {[%emt 0:00:00]} g4 {[%emt 0:00:13]} 51. hxg4 {[%emt 0:00:00]} hxg4 {[%emt 0:01:10]} 52. g3 {[%emt 0:00:00]} Qa1+ {[%emt 0:02:33]} 53. Kg2 {[%emt 0:00:00]} Qa2+ {[%emt 0:00:21]} 54. Kg1 {[%emt 0:00:00]} Qd5 {[%emt 0:06:32]} 55. Qe3+ {[%emt 0:00:00]} Kg6 {[%emt 0:01:09]} 56. Kf2 {[%emt 0:00:00]} Qa2+ {[%emt 0:00:43]} 57. Kg1 {[%emt 0:00:00]} Qb1+ {[%emt 0:00:22]} 58. Kf2 {[%emt 0:00:00]} Qc2+ {[%emt 0:00:04]} 59. Kg1 {[%emt 0:00:00]} Qe4 {[%emt 0:00:30]} 60. Qb6+ {[%emt 0:00:00]} Kf7 {[%emt 0:01:32]} 61. Qd6 {[%emt 0:00:00]} Qe6 {[%emt 0:15:45]} 62. Qc7+ {[%emt 0:00:00]} Kf6 {[%emt 0:00:29]} 63. Kf2 {[%emt 0:00:00]} Qa2+ {[%emt 0:00:42]} 64. Kg1 {[%emt 0:00:00]} Qa1+ {[%emt 0:01:25]} 65. Kf2 {[%emt 0:00:00]} Qd4+ {[%emt 0:00:16]} 66. Kg2 {[%emt 0:00:00]} Ke6 {[%emt 0:01:06]} 67. Qc6+ {[%emt 0:00:00]} Qd6 {[%emt 0:01:43]} 68. Qc3 {[%emt 0:00:00]} Kd7 {[%emt 0:03:56]} 69. Kf2 {[%emt 0:00:00]} Qb6+ {[%emt 0:01:14]} 70. Ke2 {[%emt 0:00:00]} Qb5+ {[%emt 0:00:40]} 71. Ke3 {[%emt 0:00:00]} Ke6 {[%emt 0:00:21]} 72. Qc8+ {[%emt 0:00:00]} Qd7 {[%emt 0:00:04]} 73. Qg8+ {[%emt 0:00:00]} Kf6 {[%emt 0:00:14]} 74. Qf8+ {[%emt 0:00:00]} Qf7 {[%emt 0:00:05]} 75. Qh6+ {[%emt 0:00:00]} Ke5 {[%emt 0:01:35]} 76. Qf4+ {[%emt 0:00:00]} Ke6 {[%emt 0:00:06]} 77. Qc4+ {[%emt 0:00:00]} Kf6 {[%emt 0:00:02]} 78. Qd4+ {[%emt 0:00:00]} Kg6 {[%emt 0:00:09]} 79. Kf2 {[%emt 0:00:00]} Qa2+ {[%emt 0:00:15]} 80. Kg1 {[%emt 0:00:00]} Qb1+ {[%emt 0:00:18]} 81. Kf2 {[%emt 0:00:00]} Qc2+ {[%emt 0:00:04]} 82. Kg1 {[%emt 0:00:00]} Qe4 {[%emt 0:00:07]} 83. Qd6+ {[%emt 0:00:00]} Kf7 {[%emt 0:00:02]} 84. Kf2 {[%emt 0:00:00]} Qf3+ {[%emt 0:00:46]} 85. Kg1 {[%emt 0:00:00]} Qe3+ {[%emt 0:00:05]} 86. Kg2 {[%emt 0:00:00]} Qe6 {[%emt 0:00:06]} 87. Qc7+ {[%emt 0:00:00]} Kf6 {[%emt 0:00:07]} 88. Qb8 {[%emt 0:00:00]} Qe4+ {[%emt 0:01:05]} 89. Kf2 {[%emt 0:00:00]} Qd4+ {[%emt 0:00:04]} 90. Kg2 {[%emt 0:00:00]} Ke6 {[%emt 0:00:10]} 91. Qe8+ {[%emt 0:00:45]} Kd5 {[%emt 0:00:20]} 92. Qa8+ {[%emt 0:00:13]} Ke6 {[%emt 0:00:55]} 93. Qe8+ {[%emt 0:00:05]} Kd6 {[%emt 0:00:18]} 94. Qd8+ {[%emt 0:00:05]} Ke5 {[%emt 0:00:18]} 95. Qe8+ {[%emt 0:00:07]} Kd6 {[%emt 0:00:04]} 96. Qd8+ {[%emt 0:00:04]} 1/2-1/2

[Event "FIDE Chesscom Grand Swiss 2019"]
[Site "Douglas-Isle of Man"]
[Date "2019.10.15"]
[Round "6.29"]
[White "Leko, Peter"]
[Black "Sadhwani, Raunak"]
[Result "1/2-1/2"]
[ECO "B12"]
[WhiteElo "2670"]
[BlackElo "2479"]
[Annotator "RC"]
[PlyCount "75"]
[EventDate "2019.10.10"]
[EventType "swiss"]
[EventCountry "GBR"]
[SourceTitle "playchess.com"]
[Source "ChessBase"]
[SourceQuality "1"]
[TimeControl "40/6000+30:20/3000+30:900+30"]

1. e4 {[%emt 0:00:00]} c6 {[%emt 0:00:00]} 2. d4 {[%emt 0:00:07]} d5 {[%emt 0:00:00]} 3. e5 {[%emt 0:00:07]} Bf5 {[%emt 0:00:00]} 4. Nd2 {[%emt 0:00:12]} e6 {[%emt 0:00:00]} 5. Nb3 {[%emt 0:00:09]} Nd7 {[%emt 0:00:00]} 6. Nf3 {[%emt 0:00:08]} a6 {[%emt 0:00:00]} 7. Be2 {[%emt 0:00:45]} c5 {[%emt 0:00:06]} 8. dxc5 {[%emt 0:04:27]} Bxc5 {[%emt 0:00:05]} 9. Nxc5 {[%emt 0:00:10]} Nxc5 {[%emt 0:00:06]} 10. Nd4 {[%emt 0:03:09]} Ne7 {[%emt 0:00:07]} 11. O-O {[%emt 0:01:52]} O-O {[%emt 0:00:08]} 12. Re1 {[%emt 0:01:55]} Bg6 {[%emt 0:03:03]} 13. Bf1 {[%emt 0:07:36]} b5 {[%emt 0:03:22]} 14. c3 {[%emt 0:01:37]} Nf5 {[%emt 0:04:07]} 15. Nxf5 {[%emt 0:02:56]} Bxf5 {[%emt 0:00:07]} 16. Be3 {[%emt 0:00:12]} Qe7 {[%emt 0:06:56]} 17. Bd4 {[%emt 0:00:45]} h6 {[%emt 0:01:04]} 18. Qd2 {[%emt 0:04:07]} Rfc8 {[%emt 0:03:26]} 19. Qe3 {[%emt 0:02:19]} Na4 {[%emt 0:00:38]} 20. b3 {[%emt 0:04:10]} Nc5 {[%emt 0:00:17]} 21. Rad1 {[%emt 0:02:40]} Rc6 {[%emt 0:01:23]} 22. f3 {[%emt 0:02:42]} Rac8 {[%emt 0:00:17]} 23. Rd2 {[%emt 0:01:37]} Bg6 {[%emt 0:00:58]} 24. h3 {[%emt 0:09:52]} Bh7 {[%emt 0:02:37]} 25. Qf2 {[%emt 0:04:31]} Qb7 {[%emt 0:01:57]} 26. c4 {[%emt 0:07:27]} bxc4 {[%emt 0:03:44]} 27. bxc4 {[%emt 0:01:45]} Bg6 {[%emt 0:00:40]} 28. cxd5 {[%emt 0:04:55]} exd5 {[%emt 0:00:06]} 29. Be3 {[%emt 0:10:20]} Nd7 {[%emt 0:01:33]} 30. Rb2 {[%emt 0:19:23]} Qc7 {[%emt 0:02:37]} 31. Bd4 {[%emt 0:00:21]} Qa5 {[%emt 0:01:52]} 32. Qd2 {[%emt 0:00:40]} Qd8 {[%emt 0:01:48]} 33. Bf2 {[%emt 0:05:40]} Nf8 {[%emt 0:03:16]} 34. Rd1 {[%emt 0:00:21]} Bc2 {[%emt 0:01:01]} 35. Rc1 {[%emt 0:00:17]} Bg6 {[%emt 0:00:06]} 36. Rd1 {[%emt 0:00:48]} Bc2 {[%emt 0:00:07]} 37. Rc1 {[%emt 0:00:07]} Bg6 {[%emt 0:00:04]} 38. Rd1 {[%emt 0:05:54]} 1/2-1/2

[Event "FIDE Chesscom Grand Swiss 2019"]
[Site "Douglas-Isle of Man"]
[Date "2019.10.15"]
[Round "6.29"]
[White "Munguntuul, Batkhuyag"]
[Black "Efimenko, Zahar"]
[Result "1/2-1/2"]
[ECO "B07"]
[WhiteElo "2421"]
[BlackElo "2604"]
[Annotator "ChessBase"]
[PlyCount "111"]
[EventDate "2019.10.10"]
[EventType "swiss"]
[EventCountry "GBR"]
[SourceTitle "playchess.com"]
[Source "ChessBase"]
[SourceQuality "1"]
[TimeControl "40/6000+30:20/3000+30:900+30"]

1. e4 {[%emt 0:00:00]} g6 {[%emt 0:00:20]} 2. d4 {[%emt 0:00:00]} Bg7 {[%emt 0:00:11]} 3. Nc3 {[%emt 0:00:53]} d6 {[%emt 0:00:11]} 4. Be3 {[%emt 0:00:24]} a6 {[%emt 0:00:19]} 5. h4 {[%emt 0:00:40]} Nf6 {[%emt 0:01:39]} 6. f3 {[%emt 0:00:16]} Nbd7 {[%emt 0:01:25]} 7. g4 {[%emt 0:04:20]} h6 {[%emt 0:00:41]} 8. Qd2 {[%emt 0:04:43]} b5 {[%emt 0:01:17]} 9. Nge2 {[%emt 0:02:36]} b4 {[%emt 0:17:46]} 10. Na4 {[%emt 0:03:39]} Rb8 {[%emt 0:11:11]} 11. Ng3 {[%emt 0:09:26]} c5 {[%emt 0:02:01]} 12. b3 {[%emt 0:12:12]} Qa5 {[%emt 0:27:25]} 13. Rd1 {[%emt 0:18:29]} cxd4 {[%emt 0:09:12]} 14. Bxd4 {[%emt 0:00:55]} Bb7 {[%emt 0:03:32]} 15. Be2 {[%emt 0:03:13]} e5 {[%emt 0:08:15]} 16. Be3 {[%emt 0:06:01]} d5 {[%emt 0:05:23]} 17. g5 {[%emt 0:01:36]} hxg5 {[%emt 0:00:11]} 18. hxg5 {[%emt 0:00:13]} Rxh1+ {[%emt 0:00:11]} 19. Nxh1 {[%emt 0:00:02]} Ng8 {[%emt 0:00:31]} 20. exd5 {[%emt 0:00:37]} Ne7 {[%emt 0:00:06]} 21. Bc4 {[%emt 0:04:41]} Nf5 {[%emt 0:00:45]} 22. Nf2 {[%emt 0:08:08]} Nd4 {[%emt 0:02:15]} 23. Bxd4 {[%emt 0:09:35]} exd4 {[%emt 0:00:04]} 24. Ne4 {[%emt 0:00:35]} Bxd5 {[%emt 0:01:47]} 25. Nac5 {[%emt 0:05:13]} Bxc4 {[%emt 0:04:06]} 26. Nxd7 {[%emt 0:00:27]} Kxd7 {[%emt 0:00:21]} 27. bxc4 {[%emt 0:00:11]} Qf5 {[%emt 0:02:07]} 28. Kf2 {[%emt 0:05:19]} Be5 {[%emt 0:00:39]} 29. Rh1 {[%emt 0:00:31]} a5 {[%emt 0:00:37]} 30. Qd3 {[%emt 0:04:32]} Ke7 {[%emt 0:00:31]} 31. Rh4 {[%emt 0:01:20]} a4 {[%emt 0:04:22]} 32. c5 {[%emt 0:03:02]} Qe6 {[%emt 0:01:50]} 33. Nd6 {[%emt 0:00:49]} Qd5 {[%emt 0:03:46]} 34. Re4 {[%emt 0:01:32]} Kf8 {[%emt 0:00:45]} 35. Qc4 {[%emt 0:00:09]} Qxc4 {[%emt 0:00:17]} 36. Nxc4 {[%emt 0:00:02]} Bc7 {[%emt 0:00:59]} 37. Rxd4 {[%emt 0:00:15]} Ke7 {[%emt 0:00:47]} 38. Ne3 {[%emt 0:01:37]} Ke6 {[%emt 0:00:33]} 39. Re4+ {[%emt 0:00:19]} Kd7 {[%emt 0:00:19]} 40. Nd5 {[%emt 0:00:05]} Ba5 {[%emt 0:00:27]} 41. Ke3 {[%emt 0:01:57]} Kc6 {[%emt 0:11:12]} 42. Re5 {[%emt 0:02:08]} b3 {[%emt 0:05:23]} 43. cxb3 {[%emt 0:00:04]} axb3 {[%emt 0:00:03]} 44. axb3 {[%emt 0:03:35]} Rxb3+ {[%emt 0:00:30]} 45. Ke4 {[%emt 0:00:12]} Bd2 {[%emt 0:05:04]} 46. Re7 {[%emt 0:03:32]} Kxc5 {[%emt 0:02:49]} 47. f4 {[%emt 0:03:11]} Rb1 {[%emt 0:04:09]} 48. Rxf7 {[%emt 0:01:03]} Re1+ {[%emt 0:01:01]} 49. Kd3 {[%emt 0:00:02]} Kxd5 {[%emt 0:03:49]} 50. Kxd2 {[%emt 0:00:02]} Re4 {[%emt 0:02:41]} 51. Kd3 {[%emt 0:07:23]} Ra4 {[%emt 0:00:44]} 52. Rd7+ {[%emt 0:00:21]} Ke6 {[%emt 0:00:47]} 53. Rd4 {[%emt 0:03:07]} Ra1 {[%emt 0:00:38]} 54. Ke4 {[%emt 0:00:41]} Re1+ {[%emt 0:00:07]} 55. Kf3 {[%emt 0:00:02]} Rf1+ {[%emt 0:00:08]} 56. Ke4 {[%emt 0:01:39]} 1/2-1/2

[Event "FIDE Chesscom Grand Swiss 2019"]
[Site "Douglas-Isle of Man"]
[Date "2019.10.15"]
[Round "6.30"]
[White "Movsesian, Sergei"]
[Black "Sebag, Marie"]
[Result "1/2-1/2"]
[ECO "B26"]
[WhiteElo "2654"]
[BlackElo "2445"]
[Annotator "RC"]
[PlyCount "70"]
[EventDate "2019.10.10"]
[EventType "swiss"]
[EventCountry "GBR"]
[SourceTitle "playchess.com"]
[Source "ChessBase"]
[SourceQuality "1"]
[TimeControl "40/6000+30:20/3000+30:900+30"]

1. e4 {[%emt 0:00:00]} c5 {[%emt 0:00:00]} 2. Nc3 {[%emt 0:00:00]} Nc6 {[%emt 0:00:00]} 3. g3 {[%emt 0:00:03]} g6 {[%emt 0:00:23]} 4. Bg2 {[%emt 0:00:06]} Bg7 {[%emt 0:00:24]} 5. d3 {[%emt 0:00:06]} d6 {[%emt 0:00:18]} 6. Be3 {[%emt 0:01:10]} Rb8 {[%emt 0:00:36]} 7. Qd2 {[%emt 0:01:41]} b5 {[%emt 0:02:05]} 8. h3 {[%emt 0:02:18]} b4 {[%emt 0:03:22]} 9. Nd1 {[%emt 0:00:24]} e6 {[%emt 0:02:51]} 10. Nf3 {[%emt 0:06:58]} Nd4 {[%emt 0:13:19]} 11. Nh2 {[%emt 0:00:34]} Qa5 {[%emt 0:03:46]} 12. O-O {[%emt 0:11:17]} Bd7 {[%emt 0:03:37]} 13. a3 {[%emt 0:07:32]} h5 {[%emt 0:13:50]} 14. Bg5 {[%emt 0:11:23]} Qc7 {[%emt 0:14:29]} 15. axb4 {[%emt 0:18:14]} cxb4 {[%emt 0:00:41]} 16. Rc1 {[%emt 0:00:05]} Ne7 {[%emt 0:04:03]} 17. h4 {[%emt 0:00:55]} a5 {[%emt 0:02:52]} 18. Nf3 {[%emt 0:06:44]} Nec6 {[%emt 0:03:42]} 19. Nxd4 {[%emt 0:00:58]} Nxd4 {[%emt 0:00:13]} 20. b3 {[%emt 0:03:50]} Qc5 {[%emt 0:17:35]} 21. Be3 {[%emt 0:04:16]} O-O {[%emt 0:00:31]} 22. f4 {[%emt 0:01:07]} f5 {[%emt 0:07:12]} 23. Qf2 {[%emt 0:02:36]} e5 {[%emt 0:00:25]} 24. Nb2 {[%emt 0:02:11]} Rbc8 {[%emt 0:03:15]} 25. exf5 {[%emt 0:04:05]} Bxf5 {[%emt 0:03:35]} 26. Nc4 {[%emt 0:00:54]} exf4 {[%emt 0:05:09]} 27. gxf4 {[%emt 0:01:07]} Rce8 {[%emt 0:00:20]} 28. Kh1 {[%emt 0:01:45]} Bd7 {[%emt 0:00:30]} 29. Nd2 {[%emt 0:04:58]} Rxe3 {[%emt 0:01:13]} 30. Qxe3 {[%emt 0:00:05]} Nxb3 {[%emt 0:00:14]} 31. d4 {[%emt 0:02:48]} Nxd4 {[%emt 0:00:10]} 32. Ne4 {[%emt 0:00:04]} Qc7 {[%emt 0:02:53]} 33. Ng5 {[%emt 0:04:26]} Nf5 {[%emt 0:00:52]} 34. Qb3+ {[%emt 0:06:13]} Kh8 {[%emt 0:00:04]} 35. Nf7+ {[%emt 0:00:47]} Kh7 {[%emt 0:00:04]} 1/2-1/2

[Event "FIDE Chesscom Grand Swiss 2019"]
[Site "Douglas-Isle of Man"]
[Date "2019.10.15"]
[Round "6.30"]
[White "Puranik, Abhimanyu"]
[Black "Robson, Ray"]
[Result "1/2-1/2"]
[ECO "B91"]
[WhiteElo "2571"]
[BlackElo "2670"]
[Annotator "RC"]
[PlyCount "61"]
[EventDate "2019.10.10"]
[EventType "swiss"]
[EventCountry "GBR"]
[SourceTitle "playchess.com"]
[Source "ChessBase"]
[SourceQuality "1"]
[TimeControl "40/6000+30:20/3000+30:900+30"]

1. e4 {[%emt 0:00:00]} c5 {[%emt 0:00:00]} 2. Nf3 {[%emt 0:00:05]} d6 {[%emt 0:00:04]} 3. d4 {[%emt 0:00:14]} cxd4 {[%emt 0:00:15]} 4. Nxd4 {[%emt 0:00:05]} Nf6 {[%emt 0:00:17]} 5. Nc3 {[%emt 0:00:20]} a6 {[%emt 0:00:32]} 6. g3 {[%emt 0:00:55]} e5 {[%emt 0:01:15]} 7. Nde2 {[%emt 0:01:08]} Be7 {[%emt 0:01:08]} 8. Bg2 {[%emt 0:00:40]} Be6 {[%emt 0:01:30]} 9. a4 {[%emt 0:03:54]} Nbd7 {[%emt 0:00:56]} 10. O-O {[%emt 0:00:57]} O-O {[%emt 0:00:38]} 11. b3 {[%emt 0:11:54]} b5 {[%emt 0:04:14]} 12. axb5 {[%emt 0:09:47]} axb5 {[%emt 0:00:12]} 13. Rxa8 {[%emt 0:00:27]} Qxa8 {[%emt 0:00:09]} 14. Nxb5 {[%emt 0:01:18]} Nxe4 {[%emt 0:00:56]} 15. Qe1 {[%emt 0:22:52]} Qb8 {[%emt 0:15:28]} 16. Nbd4 {[%emt 0:11:21]} exd4 {[%emt 0:19:30]} 17. Bxe4 {[%emt 0:00:05]} Bh3 {[%emt 0:15:18]} 18. Bg2 {[%emt 0:03:27]} Bxg2 {[%emt 0:00:50]} 19. Kxg2 {[%emt 0:00:04]} Bf6 {[%emt 0:10:57]} 20. Qd2 {[%emt 0:06:44]} Rc8 {[%emt 0:01:02]} 21. Rd1 {[%emt 0:11:04]} Qb7+ {[%emt 0:09:00]} 22. Kg1 {[%emt 0:02:52]} d3 {[%emt 0:10:13]} 23. Qxd3 {[%emt 0:00:50]} Ne5 {[%emt 0:00:12]} 24. Qd5 {[%emt 0:00:31]} Qxd5 {[%emt 0:00:26]} 25. Rxd5 {[%emt 0:00:04]} Rxc2 {[%emt 0:00:12]} 26. Kf1 {[%emt 0:00:13]} Nf3 {[%emt 0:00:37]} 27. h4 {[%emt 0:08:39]} h5 {[%emt 0:02:01]} 28. Rxd6 {[%emt 0:05:54]} Nd4 {[%emt 0:00:57]} 29. Nxd4 {[%emt 0:00:23]} Rxc1+ {[%emt 0:00:07]} 30. Kg2 {[%emt 0:00:53]} Rb1 {[%emt 0:00:17]} 31. Ne2 {[%emt 0:01:51]} 1/2-1/2

[Event "FIDE Chesscom Grand Swiss 2019"]
[Site "Douglas-Isle of Man"]
[Date "2019.10.15"]
[Round "6.31"]
[White "Eljanov, Pavel"]
[Black "Rakhmanov, Aleksandr"]
[Result "1/2-1/2"]
[ECO "D37"]
[WhiteElo "2663"]
[BlackElo "2621"]
[Annotator "RC"]
[PlyCount "89"]
[EventDate "2019.10.10"]
[EventType "swiss"]
[EventCountry "GBR"]
[SourceTitle "playchess.com"]
[Source "ChessBase"]
[SourceQuality "1"]
[TimeControl "40/6000+30:20/3000+30:900+30"]

1. d4 {[%emt 0:00:00]} d5 {[%emt 0:00:00]} 2. c4 {[%emt 0:00:00]} e6 {[%emt 0:00:00]} 3. Nc3 {[%emt 0:00:02]} a6 {[%emt 0:00:20]} 4. cxd5 {[%emt 0:00:27]} exd5 {[%emt 0:00:06]} 5. Nf3 {[%emt 0:00:10]} Nf6 {[%emt 0:00:22]} 6. Bg5 {[%emt 0:00:05]} Be6 {[%emt 0:01:12]} 7. e3 {[%emt 0:00:30]} Nbd7 {[%emt 0:00:32]} 8. Bd3 {[%emt 0:00:05]} Bd6 {[%emt 0:00:55]} 9. O-O {[%emt 0:01:46]} c6 {[%emt 0:03:29]} 10. h3 {[%emt 0:02:15]} Qc7 {[%emt 0:03:06]} 11. Qd2 {[%emt 0:00:14]} O-O {[%emt 0:06:33]} 12. Bf4 {[%emt 0:01:49]} Rfe8 {[%emt 0:08:06]} 13. Rfe1 {[%emt 0:00:09]} Nf8 {[%emt 0:21:24]} 14. Bxd6 {[%emt 0:22:18]} Qxd6 {[%emt 0:00:08]} 15. Ne5 {[%emt 0:00:02]} N6d7 {[%emt 0:04:38]} 16. f4 {[%emt 0:00:16]} f6 {[%emt 0:00:30]} 17. Nf3 {[%emt 0:00:07]} Bf7 {[%emt 0:02:55]} 18. a4 {[%emt 0:11:25]} Bg6 {[%emt 0:05:30]} 19. f5 {[%emt 0:00:47]} Bf7 {[%emt 0:00:23]} 20. a5 {[%emt 0:08:05]} c5 {[%emt 0:01:34]} 21. Bc2 {[%emt 0:03:42]} cxd4 {[%emt 0:02:19]} 22. Qxd4 {[%emt 0:05:17]} Ne5 {[%emt 0:06:21]} 23. Nxe5 {[%emt 0:00:49]} fxe5 {[%emt 0:05:28]} 24. Qh4 {[%emt 0:03:52]} Nd7 {[%emt 0:04:25]} 25. Ba4 {[%emt 0:11:54]} Red8 {[%emt 0:09:20]} 26. Bxd7 {[%emt 0:00:26]} Rxd7 {[%emt 0:00:39]} 27. Na4 {[%emt 0:04:48]} Rad8 {[%emt 0:07:47]} 28. Rac1 {[%emt 0:09:48]} Rc7 {[%emt 0:03:24]} 29. Rxc7 {[%emt 0:01:19]} Qxc7 {[%emt 0:00:05]} 30. b4 {[%emt 0:00:06]} Re8 {[%emt 0:10:26]} 31. Qg3 {[%emt 0:11:48]} Qc2 {[%emt 0:01:45]} 32. f6 {[%emt 0:02:21]} Qg6 {[%emt 0:00:05]} 33. Qxg6 {[%emt 0:00:13]} Bxg6 {[%emt 0:00:47]} 34. fxg7 {[%emt 0:00:07]} Kxg7 {[%emt 0:01:01]} 35. Nc5 {[%emt 0:05:19]} Re7 {[%emt 0:00:14]} 36. Rd1 {[%emt 0:01:34]} Bf7 {[%emt 0:00:18]} 37. Kf2 {[%emt 0:02:01]} Kf6 {[%emt 0:00:40]} 38. g4 {[%emt 0:00:19]} h6 {[%emt 0:01:26]} 39. Kg3 {[%emt 0:00:46]} Kg6 {[%emt 0:00:43]} 40. h4 {[%emt 0:00:25]} Kf6 {[%emt 0:00:30]} 41. h5 {[%emt 0:08:35]} Bg8 {[%emt 0:01:11]} 42. Kh4 {[%emt 0:05:39]} Rg7 {[%emt 0:04:41]} 43. Rf1+ {[%emt 0:00:52]} Ke7 {[%emt 0:00:04]} 44. Rf5 {[%emt 0:01:57]} Be6 {[%emt 0:01:13]} 45. Nxe6 {[%emt 0:14:04]} 1/2-1/2

[Event "FIDE Chesscom Grand Swiss 2019"]
[Site "Douglas-Isle of Man"]
[Date "2019.10.15"]
[Round "6.31"]
[White "Ushenina, Anna"]
[Black "Iturrizaga Bonelli, Eduardo"]
[Result "1-0"]
[ECO "A50"]
[WhiteElo "2431"]
[BlackElo "2629"]
[Annotator "RC"]
[PlyCount "77"]
[EventDate "2019.10.10"]
[EventType "swiss"]
[EventCountry "GBR"]
[SourceTitle "playchess.com"]
[Source "ChessBase"]
[SourceQuality "1"]
[TimeControl "40/6000+30:20/3000+30:900+30"]

1. d4 {[%emt 0:00:00]} Nf6 {[%emt 0:00:00]} 2. c4 {[%emt 0:00:01]} b6 {[%emt 0:00:38]} 3. Nc3 {[%emt 0:00:20]} Bb7 {[%emt 0:00:04]} 4. Qc2 {[%emt 0:00:26]} d5 {[%emt 0:00:05]} 5. cxd5 {[%emt 0:00:11]} Nxd5 {[%emt 0:00:05]} 6. e4 {[%emt 0:00:43]} Nxc3 {[%emt 0:00:34]} 7. bxc3 {[%emt 0:00:02]} e6 {[%emt 0:03:47]} 8. Nf3 {[%emt 0:06:10]} Be7 {[%emt 0:00:02]} 9. Bb5+ {[%emt 0:09:35]} c6 {[%emt 0:00:07]} 10. Bc4 {[%emt 0:00:18]} c5 {[%emt 0:02:00]} 11. O-O {[%emt 0:09:38]} O-O {[%emt 0:12:29]} 12. Bf4 {[%emt 0:17:30]} Nc6 {[%emt 0:14:42]} 13. Rad1 {[%emt 0:08:22]} Na5 {[%emt 0:18:14]} 14. Bd3 {[%emt 0:01:25]} c4 {[%emt 0:15:29]} 15. Be2 {[%emt 0:00:04]} Rc8 {[%emt 0:00:03]} 16. d5 {[%emt 0:06:39]} exd5 {[%emt 0:01:02]} 17. exd5 {[%emt 0:02:23]} Bf6 {[%emt 0:18:51]} 18. Ne5 {[%emt 0:06:32]} Bxe5 {[%emt 0:16:38]} 19. Bxe5 {[%emt 0:00:07]} Qg5 {[%emt 0:00:05]} 20. Bg3 {[%emt 0:05:12]} Rcd8 {[%emt 0:02:01]} 21. Bf3 {[%emt 0:00:43]} Bc8 {[%emt 0:02:01]} 22. Rd4 {[%emt 0:12:58]} Bf5 {[%emt 0:00:20]} 23. Qd1 {[%emt 0:00:05]} Rd7 {[%emt 0:01:03]} 24. Bh4 {[%emt 0:05:30]} Qg6 {[%emt 0:00:23]} 25. Re1 {[%emt 0:00:11]} Qd6 {[%emt 0:00:26]} 26. Qe2 {[%emt 0:01:46]} Bd3 {[%emt 0:00:06]} 27. Qe3 {[%emt 0:00:15]} f6 {[%emt 0:00:41]} 28. Bg3 {[%emt 0:05:44]} Qa3 {[%emt 0:00:01]} 29. Qe6+ {[%emt 0:00:51]} Rff7 {[%emt 0:00:20]} 30. Qe8+ {[%emt 0:03:57]} Qf8 {[%emt 0:00:03]} 31. d6 {[%emt 0:00:55]} g6 {[%emt 0:00:36]} 32. Bd5 {[%emt 0:00:31]} Kg7 {[%emt 0:00:02]} 33. Bxf7 {[%emt 0:01:12]} Qxf7 {[%emt 0:00:02]} 34. Qxd7 {[%emt 0:04:09]} Qxd7 {[%emt 0:00:07]} 35. Re7+ {[%emt 0:00:02]} Qxe7 {[%emt 0:00:13]} 36. dxe7 {[%emt 0:00:02]} Kf7 {[%emt 0:00:06]} 37. Rd7 {[%emt 0:00:12]} Ke8 {[%emt 0:00:26]} 38. Rc7 {[%emt 0:02:10]} Be4 {[%emt 0:00:22]} 39. Bd6 {[%emt 0:00:12]} 1-0